Workbook

Sheet P. BDI
B1: IMPRIMIR EM PAPEL TIMBRADO DA EMPRESA PROPONENTE
B2: BDI - Bonificações e Despesas Indiretas
B3: Edital : | C3: TP -xxx
B4: Tomador: | C4: Prefeitura Municipal de Dois Vizinhos - PR
B5: Empreendimento: | C5: MELHORIAS ESCOLA NSA. DE LOURDES
B6: Local da Obra: | C6: --
B7: Empresa Prop.: | C7: xxxxxxxxxxxxxx
B8: CNPJ: | C8: xxxxxxxxxxxxxx
B9: Referencia: | C9: ='Orçamento novo'!C11 -> SINAPI 06/2017 Desonerado
B11: Identifique o tipo de obra: | C11: 1 | D11: =IF(C11>0,IF(C11<7,,"<--- Insira valor entre 1 e 6"),"<--- Insira valor entre 1 e 6") -> 0
B12: Construção de edifícios: | C12: 1 | D12: Informe a base de cálculo do ISSQN.
B13: Construção de rodovias e ferrovias: | C13: 2 | D13: =IF(D14<>0,0,"( X )") -> 0 | E13: Sobre os serviços.
B14: Construção de redes de abastecimento de água, coleta de esgoto e construções correlatas: | C14: 3 | D14: x | E14: Sobre a mão-de-obra.
B15: Construção e manutenção de estações e redes de distribuição de energia elétrica: | C15: 4 | D15: Informe a ocorrência da DESONERAÇÃO da folha de pagamento. Lei 12844/2013.
B16: Obras portuárias, marítimas e fluviais: | C16: 5 | D16: =IF(D17<>0,0,"( X )") -> 0 | E16: SEM Desoneração.
B17: Fornecimento de materiais e equipamentos: | C17: 6 | D17: x | E17: COM Desoneração.
C19: Intervalo de admissibilidade | H19: Ac | I19: =F21 -> 0.04
B20: Item Componente do BDI | C20: 1º Quartil | D20: Médio | E20: 3º Quartil | F20: Valores Propostos | H20: S | I20: =F22 -> 0.008
B21: Administração Central | C21: 0.03 | D21: 0.04 | E21: 0.055 | F21: 0.04 | G21: =IF(F21=0,"",IF(F21<C21,"Atenção, observar os intervalos!",IF(F21>E21,"Atenção, observar os intervalos!",""))) ->  | H21: G | I21: =I20 -> 0.008
B22: Seguro e Garantia | C22: 0.008 | D22: 0.008 | E22: 0.01 | F22: 0.008 | G22: =IF(F22=0,"",IF(F22<C22,"Atenção, observar os intervalos!",IF(F22>E22,"Atenção, observar os intervalos!",""))) ->  | H22: R | I22: =F23 -> 0.0127
B23: Risco | C23: 0.0097 | D23: 0.0127 | E23: 0.0127 | F23: 0.0127 | G23: =IF(F23=0,"",IF(F23<C23,"Atenção, observar os intervalos!",IF(F23>E23,"Atenção, observar os intervalos!",""))) ->  | H23: DF | I23: 0.0123
B24: Despesas Financeiras | C24: 0.0059 | D24: 0.0123 | E24: 0.0139 | F24: 0.0123 | G24: =IF(F24=0,"",IF(F24<C24,"Atenção, observar os intervalos!",IF(F24>E24,"Atenção, observar os intervalos!",""))) ->  | H24: L | I24: 0.074
B25: Lucro | C25: 0.0616 | D25: 0.074 | E25: 0.0896 | F25: 0.074 | G25: =IF(F25=0,"",IF(F25<C25,"Atenção, observar os intervalos!",IF(F25>E25,"Atenção, observar os intervalos!",""))) ->  | H25: l1 | I25: 0.0365
B26: I1: PIS e COFINS | F26: 0.0365 | H26: l2 | I26: 0.03
B27: I2: ISSQN (conforme legislação municipal) | F27: 0.03 | H27: l3 | I27: 0.045
B28: I3: Cont.Prev s/Rec.Bruta (Lei 12844/13 - Desoneração) | F28: 0.045
B30: BDI - SEM Desoneração da folha de pagamento | F30: =(((1+I19+I21+I22)*(1+I23)*(1+I24))/(1-I25-I26))-1 -> 0.2353549643 | H30: 1º QUARTIL | I30: MÉDIO | J30: 3º QUARTIL
B31: BDI - COM Desoneração da folha de pagamento | F31: =ROUND((((1+I19+I21+I22)*(1+I23)*(1+I24))/(1-I25-I26-I27))-1,4) -> 0.2979 | H31: 0.2034 | I31: 0.2212 | J31: 0.25
B33: Declaramos que esta planilha foi elaborada conforme equação para cálculo do percentual do BDI recomendada pelo Acórdão 2622/2013 - TCU, representada pela fórmula abaixo.
B35: BDI - SEM Desoneração = [(1+AC+S+G+R)X(1+DF)X(1+L)/(1-I1-I2)]-1
B36: BDI - COM Desoneração = [(1+AC+S+G+R)X(1+DF)X(1+L)/(1-I1-I2-I3)]-1
B39: Responsável Técnico: | C39: MARCIO TRENTINI
B40: Carimbo e Assinatura CREA/CAU: | C40: CREA - PR 133392/D
B45: Responsavel Legal:
B46: Carimbo e Assinatura

Sheet QCI
A1: IMPRIMIR EM PAPEL TIMBRADO DA EMPRESA PROPONENTE
A2: QUADRO DE COMPOSIÇÃO DE INVESTIMENTO
A8: ='P. BDI'!B3 -> Edital : | C8: ='P. BDI'!C3:F3 -> TP -xxx | D8: Valor Tot. s/ BDI: | F8: ='Orçamento novo'!H44 -> 52833.06544
A9: ='P. BDI'!B4 -> Tomador: | C9: ='P. BDI'!C4:F4 -> Prefeitura Municipal de Dois Vizinhos - PR | D9: Valor Tot. c/ BDI: | F9: ='Orçamento novo'!H46 -> 68572.03563
A10: ='P. BDI'!B5 -> Empreendimento: | C10: ='P. BDI'!C5:F5 -> MELHORIAS ESCOLA NSA. DE LOURDES
A11: ='P. BDI'!B6 -> Local da Obra: | C11: ='P. BDI'!C6:F6 -> --
A12: ='P. BDI'!B7 -> Empresa Prop.: | C12: ='P. BDI'!C7:F7 -> xxxxxxxxxxxxxx
A13: ='P. BDI'!B8 -> CNPJ: | C13: ='P. BDI'!C8:F8 -> xxxxxxxxxxxxxx
A14: ='P. BDI'!B9 -> Referencia: | C14: ='P. BDI'!C9:F9 -> SINAPI 06/2017 Desonerado
A15: BDI c/ desoneração: | C15: ='P. BDI'!F31 -> 0.2979
B25: ITEM . | C25: DESCRIÇÃO | D25: % DO GRUPO | F25: VALOR DO GRUPO: | H25: TOTAL ACUM.
B26: ='Orçamento novo'!A16 -> .1 | C26: ='Orçamento novo'!C16 -> SERVIÇOS PRELIMINARES | D26: =F26/$F$37 -> 0.01022087201 | F26: ='Orçamento novo'!H16 -> 700.866 | H26: =F26 -> 700.866
B27: ='Orçamento novo'!A18 -> .2 | C27: ='Orçamento novo'!C18 -> SERVIÇOS | D27: =F27/$F$37 -> 0.989779128 | F27: ='Orçamento novo'!H18 -> 67871.16963 | H27: =F27+H26 -> 68572.03563
B37: TOTAL : | D37: =SUM(D26:E31) -> 1 | F37: =SUM(F26:G31) -> 68572.03563 | H37: =F37 -> 68572.03563
D43: Responsável Técnico: | E43: ='P. BDI'!C39 -> MARCIO TRENTINI
D44: Carimbo e Assinatura CREA/CAU: | E44: ='P. BDI'!C40 -> CREA - PR 133392/D
D49: Responsavel Legal:
D50: Carimbo e Assinatura

Sheet Orçamento novo
A1: IMPRIMIR EM PAPEL TIMBRADO DA EMPRESA PROPONENTE
A2: PLANILHA ORÇAMENTARIA
A5: ='P. BDI'!B3 -> Edital : | C5: ='P. BDI'!C3:F3 -> TP -xxx
A6: ='P. BDI'!B4 -> Tomador: | C6: ='P. BDI'!C4:F4 -> Prefeitura Municipal de Dois Vizinhos - PR
A7: ='P. BDI'!B5 -> Empreendimento: | C7: ='P. BDI'!C5:F5 -> MELHORIAS ESCOLA NSA. DE LOURDES
A8: ='P. BDI'!B6 -> Local da Obra: | C8: ='P. BDI'!C6:F6 -> --
A9: ='P. BDI'!B7 -> Empresa Prop.: | C9: ='P. BDI'!C7:F7 -> xxxxxxxxxxxxxx
A10: ='P. BDI'!B8 -> CNPJ: | C10: ='P. BDI'!C8:F8 -> xxxxxxxxxxxxxx
A11: ='P. BDI'!B9 -> Referencia: | C11: SINAPI 06/2017 Desonerado
A12: BDI c/ desoneração: | C12: =QCI!C15 -> 0.2979
A14: ITEM . | B14: REF. | C14: DESCRIÇÃO | D14: UN | E14: VALOR UNIT. | F14: QUANT. | G14: VALOR UNIT C/ BDI | H14: TOTAL
A16: .1 | C16: SERVIÇOS PRELIMINARES | G16: TOTAL DO GRUPO: | H16: =SUM(H17:H17) -> 700.866
B17: 4813 | C17: PLACA DE OBRA (PARA CONSTRUCAO CIVIL) EM CHAPA GALVANIZADA *N. 22*, DE *2,0 X 1,125* M | D17: M2 | E17: 240 | F17: =2*1.125 -> 2.25 | G17: =(E17*$C$12)+E17 -> 311.496 | H17: =G17*F17 -> 700.866 | J17: =E17*F17 -> 540
A18: .2 | C18: SERVIÇOS | G18: TOTAL DO GRUPO: | H18: =SUM(H20:H43) -> 67871.16963 | J18: =E18*F18 -> 0
C19: QUANTITATIVO MURO DE ARRIMO 34,5M X 1,5M | J19: 0
B20: 90880 | C20: ESTACA ESCAVADA MECANICAMENTE, COM 25 CM DE DIÂMETRO, CONCRETO LANÇADO MANUALMENTE | D20: M | E20: 51.58 | F20: =(34.5/1.5)*1.5 -> 34.5 | G20: =(E20*$C$12)+E20 -> 66.945682 | H20: =G20*F20 -> 2309.626029 | J20: 1779.51
B21: 39 | C21: ACO CA-60, 5,0 MM, VERGALHAO | D21: KG | E21: 3.22 | F21: =((34.5/0.17)*0.8*0.154)+(8*1.5*0.154*23) -> 67.50635294 | G21: 4.179238 | H21: 282.1251155 | J21: 217.3704565
B22: 92775 | C22: ARMAÇÃO DE PILAR OU VIGA DE UMA ESTRUTURA CONVENCIONAL DE CONCRETO ARMADO EM UMA EDIFÍCAÇÃO TÉRREA OU SOBRADO UTILIZANDO AÇO CA-60 DE 5.0 MM - MONTAGEM. AF_12/2015 | D22: KG | E22: 13.26 | F22: 25 | G22: =(E22*$C$12)+E22 -> 17.210154 | H22: 430.25385 | J22: 331.5
B23: 34 | C23: ACO CA-50, 10,0 MM, VERGALHAO | D23: KG | E23: 3.25 | F23: =(34.5*6*1.5*0.624) -> 193.752 | G23: =(E23*$C$12)+E23 -> 4.218175 | H23: 817.2798426 | J23: 629.694
B24: 92778 | C24: ARMAÇÃO DE PILAR OU VIGA DE UMA ESTRUTURA CONVENCIONAL DE CONCRETO ARMADO EM UMA EDIFÍCAÇÃO TÉRREA OU SOBRADO UTILIZANDO AÇO CA-50 DE 10.0 MM - MONTAGEM. AF_12/2015 | D24: KG | E24: 8.5 | F24: =F23 -> 193.752 | G24: 11.03215 | H24: 2137.501127 | J24: 1646.892
B25: 74106/1 | C25: IMPERMEABILIZACAO DE ESTRUTURAS ENTERRADAS, COM TINTA ASFALTICA, DUAS DEMAOS. | D25: M2 | E25: 9.01 | F25: =34.5*1.5 -> 51.75 | G25: 11.694079 | H25: 605.1685882 | J25: 466.2675
B26: 88485 | C26: APLICAÇÃO DE FUNDO SELADOR ACRÍLICO EM PAREDES, UMA DEMÃO. AF_06/2014 | D26: M2 | E26: 1.87 | F26: =F25 -> 51.75 | G26: 2.427073 | H26: 125.6010278 | J26: 96.7725
B27: 88423 | C27: APLICAÇÃO MANUAL DE PINTURA COM TINTA TEXTURIZADA ACRÍLICA EM PAREDES EXTERNAS DE CASAS, UMA COR. AF_06/2014 | D27: M2 | E27: 13.57 | F27: =F26 -> 51.75 | G27: 17.612503 | H27: 911.4470303 | J27: 702.2475
B28: 95955 | C28: EXECUÇÃO DE ESTRUTURAS DE CONCRETO ARMADO, , FCK = 30 MPA. AF_01/2017 | D28: M3 | E28: 1901.44 | F28: =(34.5*0.14*0.25*2)+(1.5*0.15*0.3*23)+(0.08*0.08*7*1.4) -> 4.03022 | G28: 2467.878976 | H28: 9946.095207 | J28: 7663.221517
B29: 87449 | C29: ALVENARIA DE VEDAÇÃO DE BLOCOS VAZADOS DE CONCRETO DE 14X19X39CM (ESPESSURA 14CM) DE PAREDES COM ÁREA LÍQUIDA MENOR QUE 6M² SEM VÃOS E ARGAMASSA DE ASSENTAMENTO COM PREPARO EM BETONEIRA. AF_06/2014 | D29: M2 | E29: 60.1 | F29: =(1.5*(0.5+0.9))*23 -> 48.3 | G29: 78.00379 | H29: =G29*F29 -> 3767.583057 | J29: 2902.83
B30: 87879 | C30: CHAPISCO APLICADO EM ALVENARIAS E ESTRUTURAS DE CONCRETO INTERNAS, COM COLHER DE PEDREIRO. ARGAMASSA TRAÇO 1:3 COM PREPARO EM BETONEIRA 400L. AF_06/2014 | D30: M2 | E30: 2.92 | F30: =F29 -> 48.3 | G30: 3.789868 | H30: =G30*F30 -> 183.0506244 | J30: 141.036
B31: 89173 | C31: SERVIÇO DE EMBOÇO/MASSA ÚNICA, APLICADO MANUALMENTE, TRAÇO 1:2:8, EM BETONEIRA DE 400L, COM EXECUÇÃO DE TALISCAS. | D31: M2 | E31: 23.74 | F31: =F30 -> 48.3 | G31: 30.812146 | H31: =G31*F31 -> 1488.226652 | J31: 1146.642
B32: 89449 | C32: BARBACÃ, TUBO, PVC, DN 50MM - FORNECIMENTO E INSTALAÇÃO. | D32: M | E32: 13.97 | F32: =23*2*0.25 -> 11.5 | G32: 18.131663 | H32: =G32*F32 -> 208.5141245 | J32: 160.655
B33: 55835 | C33: REATERRO INTERNO (EDIFICACOES) COMPACTADO | D33: M3 | E33: 56.84 | F33: 20 | G33: 73.772636 | H33: =G33*F33 -> 1475.45272 | J33: 1136.8
B34: 83739 | C34: FORNECIMENTO/INSTALACAO DE MANTA BIDIM RT-10 | D34: M2 | E34: 4.69 | F34: 51.75 | G34: 6.087151 | H34: =G34*F34 -> 315.0100643 | J34: 242.7075
B35: 83668 | C35: CAMADA DRENANTE COM BRITA NUM 2 | D35: M3 | E35: 82.08 | F35: 7.76 | G35: 106.531632 | H35: =G35*F35 -> 826.6854643 | J35: 636.9408
C36: FECHAMENTO | J36: 0
B37: 74143/1 alterado | C37: CERCA COM MOUROES DE CONCRETO, RETO, 15X15CM, ESPACAMENTO DE 3M, H=2M, CRAVADOS 0,7M, ESCORAS DE 10X10CM , COM TELA SOLDADA GALVANIZADO, MALHA 15X5CM | D37: M | E37: 59.44 | F37: 158 | G37: 77.147176 | H37: =G37*F37 -> 12189.25381 | J37: 9391.52
B38: 37562 | C38: PORTAO DE CORRER EM GRADIL FIXO NA VERTICAL, COM FUNDO ANTICORROSIVO, PINTURA A OLEO, COM TRILHOS E ROLDANAS | D38: M2 | E38: 272.07 | F38: =4*2 -> 8 | G38: 353.119653 | H38: =G38*F38 -> 2824.957224 | J38: 2176.56
B39: 93358 | C39: ESCAVAÇÃO MANUAL DE VALAS. AF_03/2016 | D39: M3 | E39: 64.24 | F39: =130*(0.12*0.25) -> 3.9 | G39: 83.377096 | H39: =G39*F39 -> 325.1706744 | J39: =E39*F39 -> 250.536
B40: 5651 | C40: FORMA TABUA PARA CONCRETO EM FUNDACAO, C/ REAPROVEITAMENTO 5X. | D40: M2 | E40: 32.29 | F40: =(130/3)*(0.25+0.25) -> 21.66666667 | G40: 41.909191 | H40: =G40*F40 -> 908.0324717 | J40: 699.6166667
B41: 94963 | C41: CONCRETO FCK = 15MPA, TRAÇO 1:3,4:3,5 (CIMENTO/ AREIA MÉDIA/ BRITA 1) - PREPARO MECÂNICO COM BETONEIRA 400 L. AF_07/2016 | D41: M3 | E41: 263.34 | F41: =130*0.12*0.25 -> 3.9 | G41: 341.788986 | H41: 1332.977045 | J41: 1027.026
B42: 88489 | C42: APLICAÇÃO MANUAL DE PINTURA COM TINTA LÁTEX ACRÍLICA EM PAREDES, DUAS DEMÃOS. AF_06/2014 | D42: M2 | E42: 10.08 | F42: =((130/3)*(0.4*2))+(139*0.25) -> 69.41666667 | G42: 13.082832 | H42: 908.166588 | J42: 699.72
B43: COT. | C43: COBERTURA COM ESTRUTURA METALICA E TELHA EM ALUZINCO, PINTADO FORNECIMENTO E INSTALAÇÃO | D43: M2 | E43: 230 | F43: =(10.5*1.8)+(20*3) -> 78.9 | G43: 298.517 | H43: =G43*F43 -> 23552.9913 | J43: 18147
A44: VALOR TOTAL DA OBRA : | H44: =SUM(J17:J43) -> 52833.06544
A45: BDI : | H45: =H44*C12 -> 15738.97019
A46: VALOR TOTAL DA OBRA COM BDI: | H46: =H44+H45 -> 68572.03563
D51: Responsável Técnico: | E51: ='P. BDI'!C39 -> MARCIO TRENTINI
D52: Carimbo e Assinatura CREA/CAU: | E52: ='P. BDI'!C40 -> CREA - PR 133392/D
D58: Responsavel Legal:
D59: Carimbo e Assinatura

Sheet CRON
A1: IMPRIMIR EM PAPEL TIMBRADO DA EMPRESA PROPONENTE
A2: CRONOGRAMA FÍSICO-FINANCEIRO
A5: ='P. BDI'!B3 -> Edital : | C5: ='P. BDI'!C3:F3 -> TP -xxx | D5: Valor Tot. s/ BDI: | F5: =QCI!F8 -> 52833.06544
A6: ='P. BDI'!B4 -> Tomador: | C6: ='P. BDI'!C4:F4 -> Prefeitura Municipal de Dois Vizinhos - PR | D6: Valor Tot. c/ BDI: | F6: =QCI!F9 -> 68572.03563
A7: ='P. BDI'!B5 -> Empreendimento: | C7: ='P. BDI'!C5:F5 -> MELHORIAS ESCOLA NSA. DE LOURDES
A8: ='P. BDI'!B6 -> Local da Obra: | C8: ='P. BDI'!C6:F6 -> --
A9: ='P. BDI'!B7 -> Empresa Prop.: | C9: ='P. BDI'!C7:F7 -> xxxxxxxxxxxxxx
A10: ='P. BDI'!B8 -> CNPJ: | C10: ='P. BDI'!C8:F8 -> xxxxxxxxxxxxxx
A11: ='P. BDI'!B9 -> Referencia: | C11: ='P. BDI'!C9:F9 -> SINAPI 06/2017 Desonerado
A12: BDI c/ deson.: | C12: ='P. BDI'!F31 -> 0.2979
B15: ITEM . | C15: DESCRIÇÃO | E15: VALOR DO GRUPO | G15: MÊS °1 | H15: MÊS °2 | I15: MÊS °3 | J15: MÊS °4 | K15: MÊS °5 | L15: % TOTAL
B16: =QCI!B26 -> .1 | C16: =QCI!C26 -> SERVIÇOS PRELIMINARES | E16: =QCI!F26 -> 700.866 | G16: 1 | L16: =SUM(G16:K16) -> 1
B17: =QCI!B27 -> .2 | C17: =QCI!C27 -> SERVIÇOS | E17: =QCI!F27 -> 67871.16963 | G17: 0.75 | H17: 0.25 | L17: =SUM(G17:K17) -> 1
B31: % TOTAL DE EXECUÇÃO: | E31: 1 | G31: =G32/$E$32 -> 0.752555218 | H31: =H32/$E$32 -> 0.247444782 | I31: 0 | J31: 0 | K31: =K32/$E$32 -> 0
B32: TOTAL: | E32: =SUM(E16:F30) -> 68572.03563 | G32: =(G16*$E$16)+(G17*$E$17)+(G19*$E$19)+(G20*$E$20)+(G21*$E$21)+(G18*$E$18)+(G26*$E$26)+(G27*$E$27)+(G28*$E$28)+(G29*$E$29)+(G30*$E$30) -> 51604.24323 | H32: =(H16*$E$16)+(H17*$E$17)+(H19*$E$19)+(H20*$E$20)+(H21*$E$21)+(H18*$E$18)+(H26*$E$26)+(H27*$E$27)+(H28*$E$28)+(H29*$E$29)+(H30*$E$30) -> 16967.79241 | I32: =(I16*$E$16)+(I17*$E$17)+(I19*$E$19)+(I20*$E$20)+(I21*$E$21)+(I18*$E$18)+(I26*$E$26)+(I27*$E$27)+(I28*$E$28)+(I29*$E$29)+(I30*$E$30) -> 0 | J32: =(J16*$E$16)+(J17*$E$17)+(J19*$E$19)+(J20*$E$20)+(J21*$E$21)+(J18*$E$18)+(J26*$E$26)+(J27*$E$27)+(J28*$E$28)+(J29*$E$29)+(J30*$E$30) -> 0 | K32: =(K16*$E$16)+(K17*$E$17)+(K19*$E$19)+(K20*$E$20)+(K21*$E$21)+(K18*$E$18)+(K26*$E$26)+(K27*$E$27)+(K28*$E$28)+(K29*$E$29)+(K30*$E$30) -> 0
B33: TOTAL ACUM.: | G33: =G32 -> 51604.24323 | H33: =H32+G33 -> 68572.03563 | I33: =I32+H33 -> 68572.03563 | J33: =J32+I33 -> 68572.03563 | K33: =K32+J33 -> 68572.03563
F39: Responsável Técnico: | G39: ='P. BDI'!C39 -> MARCIO TRENTINI
F40: Carimbo e Assinatura CREA/CAU: | G40: ='P. BDI'!C40 -> CREA - PR 133392/D
F45: Responsavel Legal:
F46: Carimbo e Assinatura

Sheet DESTRAVAR (hidden)
A1: Sub DesprotegerPlanilhaAtiva()
A2: Dim i, i1, i2, i3, i4, i5, i6 As Integer, j As Integer, k As Integer, l As Integer, m As Integer, n As Integer
A3: On Error Resume Next
A4: For i = 65 To 66
A5: For j = 65 To 66
A6: For k = 65 To 66
A7: For l = 65 To 66
A8: For m = 65 To 66
A9: For i1 = 65 To 66
A10: For i2 = 65 To 66
A11: For i3 = 65 To 66
A12: For i4 = 65 To 66
A13: For i5 = 65 To 66
A14: For i6 = 65 To 66
A15: For n = 32 To 126
A16: ActiveSheet.Unprotect Chr(i) & Chr(j) & Chr(k) & Chr(l) & Chr(m) & Chr(i1) & Chr(i2) & Chr(i3) & Chr(i4) & Chr(i5) & Chr(i6) & Chr(n)
A17: If ActiveSheet.ProtectContents = False Then
A18: MsgBox "Planilha desprotegida com sucesso!!!"
A19: Exit Sub
A20: End If
A21: Next
A22: Next
A23: Next
A24: Next
A25: Next
A26: Next
A27: Next
A28: Next
A29: Next
A30: Next
A31: Next
A32: Next
A33: End Sub
